bitfinex-derivatives/quotes_BNBF0:USTF0_20250509
["timestamp","ask_amount","ask_price","bid_price","bid_amount"]
[1746789376666,0.26087314,641.61,639.25,0.923]
[1746789376966,0.26087314,641.6,639.25,0.923]
[1746789377270,0.26087314,641.59,639.25,0.923]
[1746789377665,0.27176566,641.7,639.25,0.923]
[1746789377666,0.26087314,641.58,639.25,0.923]
[1746789377970,0.26087314,641.57,639.25,0.923]
[1746789378472,0.26087314,641.56,639.25,0.923]
[1746789378769,0.26087314,641.55,639.25,0.923]
[1746789379073,0.26087314,641.69,639.25,0.923]
[1746789379376,0.26087314,641.68,639.25,0.923]
[1746789379775,0.26087314,641.67,639.26,1.272]
[1746789380074,0.26087314,641.66,639.27,0.28715011]
[1746789380374,0.26087314,641.65,639.27,0.28715011]
[1746789380774,0.26087314,641.64,639.27,0.28715011]
[1746789381074,0.26087314,641.63,639.27,0.28715011]
[1746789381574,0.26087314,641.62,639.27,0.28715011]
[1746789381976,0.26087314,641.61,639.27,0.28715011]
[1746789382374,0.26087314,641.6,639.27,0.28715011]
[1746789382675,0.26087314,641.59,639.27,0.28715011]
[1746789382971,0.26087314,642.01,639.27,0.28715011]
[1746789383172,0.26087314,642.01,639.4,0.31279324]
[1746789383375,0.26087314,642.0,639.4,0.31279324]
[1746789383674,0.31151677,642.02,639.4,0.31279324]
[1746789384075,0.26071782,642.01,639.4,0.31279324]
[1746789384371,0.26071782,642.0,639.4,0.31279324]
[1746789384769,0.26071782,641.99,639.4,0.31279324]
[1746789385372,0.26071782,641.98,639.4,0.31279324]
[1746789385876,0.26071782,641.97,639.4,0.31279324]
[1746789386470,0.26071782,641.96,639.4,0.31279324]
[1746789386672,0.26071782,641.95,639.4,0.31279324]
[1746789387176,0.26071782,641.94,639.4,0.31279324]
[1746789387576,0.26071782,641.93,639.41,0.28718063]
[1746789387875,0.26071782,641.92,639.41,0.28718063]
[1746789388577,0.26071782,641.91,639.41,0.28718063]
[1746789388878,0.26071782,641.9,639.41,0.28718063]
[1746789389179,0.26071782,641.89,639.41,0.28718063]
[1746789389380,2.03512279,641.29,639.41,0.28718063]
[1746789389878,0.26071782,641.28,639.41,0.28718063]
[1746789390179,0.26071782,641.28,639.41,1.06418063]
[1746789390376,0.26071782,641.27,639.41,1.06418063]
[1746789390578,0.26071782,641.26,639.42,0.28718063]
[1746789390880,2.03512279,641.29,639.41,0.777]
[1746789391482,0.26075504,641.28,639.42,0.28717424]
[1746789391675,2.29587783,641.28,639.42,0.28717424]
[1746789391874,0.26075504,641.27,639.42,0.28717424]
[1746789392076,0.53245174,641.27,639.42,0.28717424]
[1746789392281,0.26075504,641.26,639.42,0.28717424]
[1746789392477,0.26075504,641.25,639.42,0.28717424]
[1746789392779,0.26075504,641.24,639.42,0.28717424]
[1746789393182,0.26075504,641.23,639.42,0.28717424]
[1746789393481,0.26075504,641.22,639.42,0.28717424]
[1746789393783,0.26075504,641.21,639.42,0.28717424]
[1746789393986,0.26075504,641.2,639.42,0.28717424]
[1746789394282,0.53251009,641.2,639.42,0.28717424]
[1746789394475,0.26075504,641.19,639.42,0.28717424]
[1746789394676,0.26075504,641.19,639.44,0.31277367]
[1746789394877,0.26075504,641.18,639.44,0.31277367]
[1746789395283,0.26075504,641.19,639.45,0.28717424]
[1746789395481,0.27175505,641.2,639.47,0.312759]
[1746789395884,0.26071553,641.19,639.48,0.2871341]
[1746789396283,0.26071553,641.19,639.47,0.312759]
[1746789397283,0.26071553,641.48,639.47,0.312759]
[1746789397578,0.27174868,641.18,639.47,0.312759]
[1746789397784,0.26071553,641.17,639.47,0.312759]
[1746789398178,0.26071553,641.48,639.47,0.312759]
[1746789398883,0.27171049,641.47,639.47,0.312759]
[1746789399183,0.53242602,641.47,639.47,0.312759]
[1746789399380,0.26071553,641.46,639.47,0.312759]
[1746789399582,0.26071553,641.45,639.47,0.312759]
[1746789399878,0.26071553,641.44,639.47,0.312759]
[1746789400285,0.26071553,641.43,639.47,0.312759]
[1746789400483,0.26071553,641.42,639.47,0.312759]
[1746789400883,0.26071553,641.43,639.47,0.312759]
[1746789402179,0.26071553,641.43,639.48,0.58]
[1746789402892,0.27171049,641.44,639.48,0.58]
[1746789403191,0.2607146,641.43,639.48,0.58]
[1746789403491,0.27158538,641.42,639.48,0.58]
[1746789404087,0.2607146,641.41,639.48,0.58]
[1746789404993,0.2607146,641.41,639.49,0.2869955]
[1746789405594,0.2607146,641.41,639.5,0.843]
[1746789405994,0.2607146,641.41,639.51,0.2869955]
[1746789406293,0.27161718,641.4,639.51,0.2869955]
[1746789406795,0.27161718,641.4,639.52,0.485]
[1746789407093,0.2607146,641.39,639.52,0.485]
[1746789408391,0.2607146,641.39,639.54,0.31272477]
[1746789408690,0.2607146,641.39,639.55,0.28704961]
[1746789409295,0.2715822,641.38,639.55,0.28704961]
[1746789409594,0.2607146,641.37,639.55,0.28704961]
[1746789409795,0.2607146,641.37,639.57,0.3127101]
[1746789410295,0.2607146,641.37,639.58,0.28704961]
[1746789411697,0.2607146,641.37,639.57,0.3127101]
[1746789412291,0.27157796,641.36,639.57,0.3127101]
[1746789412591,0.2607146,641.35,639.57,0.3127101]
[1746789415195,0.27157796,641.36,639.57,0.3127101]
[1746789416801,0.26049582,641.35,639.58,0.28691161]
[1746789417203,0.27157796,641.36,639.58,0.28691161]
[1746789418100,2.03512279,643.53,639.58,0.28691161]
[1746789418402,0.27135667,641.35,639.58,0.28691161]
[1746789418596,0.31079548,643.51,639.59,0.9]
[1746789418900,0.26038078,643.5,639.6,0.28691161]
[1746789419301,0.26038078,643.49,639.6,0.28691161]
[1746789419600,0.26038078,643.48,639.6,0.28691161]
[1746789419901,0.53175226,643.48,639.6,0.28691161]
[1746789420201,2.03512279,642.73,639.6,0.28691161]
[1746789420700,0.26038078,642.72,639.6,0.28691161]
[1746789421101,0.26038078,642.71,639.6,0.28691161]
[1746789421703,0.26038078,642.7,639.6,0.28691161]
[1746789422000,0.26038078,642.69,639.6,0.28691161]
[1746789422399,0.26038078,642.72,639.6,0.28691161]
[1746789422699,0.26038078,643.47,639.6,0.28691161]
[1746789423001,0.26038078,643.46,639.6,0.28691161]
[1746789423302,0.26038078,643.45,639.6,0.28691161]
[1746789423601,0.26038078,643.44,639.6,0.28691161]
[1746789424304,0.27139158,643.43,639.6,0.28691161]
[1746789424601,0.53177236,643.43,639.6,0.28691161]
[1746789424901,0.26038078,643.42,639.6,0.28691161]
[1746789425197,0.26038078,643.41,639.6,0.28691161]
[1746789425701,0.26038078,643.4,639.79,0.31260257]
[1746789426002,0.26038078,643.39,639.8,0.28691161]
[1746789426298,0.26038078,643.38,639.8,0.28691161]
[1746789426999,2.03512279,642.86,639.8,0.28691161]
[1746789427608,0.26038078,642.85,639.8,0.28691161]
[1746789427907,0.26038078,642.84,639.8,0.28691161]
[1746789428210,0.26038078,642.83,639.8,0.28691161]
[1746789428503,0.26038078,642.82,639.8,0.28691161]
[1746789428806,0.26038078,642.81,639.8,0.28691161]
[1746789429110,0.26038078,642.8,639.95,0.31252441]
[1746789429510,2.03512279,642.57,639.95,0.31252441]
[1746789429906,0.26038078,642.56,639.95,0.31252441]
[1746789430206,0.26038078,642.55,639.95,0.31252441]
[1746789430706,0.26038078,642.54,639.95,0.31252441]
[1746789431210,0.26038078,642.53,639.95,0.31252441]
[1746789431608,0.26038078,642.52,639.95,0.31252441]
[1746789431910,0.26038078,642.51,639.96,0.709]
[1746789432205,0.26038078,642.5,639.96,0.709]
[1746789432410,0.26038078,642.5,640.08,0.31246094]
[1746789432608,2.03512279,642.68,640.08,0.31246094]
[1746789433006,0.26054618,642.67,640.08,0.31246094]
[1746789433309,0.26054618,642.66,640.08,0.31246094]
[1746789433509,0.53202139,642.66,640.08,0.31246094]
[1746789433811,0.26054618,642.65,640.09,0.484]
[1746789434112,0.26054618,642.64,640.09,0.484]
[1746789434313,2.03512279,642.42,640.21,0.31239749]
[1746789434613,0.26054618,642.41,640.22,0.585]
[1746789434806,0.26054618,642.4,640.22,0.585]
[1746789435011,0.26054618,642.4,640.32,0.31234382]
[1746789435211,0.26054618,642.39,640.32,0.31234382]
[1746789435711,0.26054618,642.38,640.32,0.31234382]
[1746789436112,2.29566897,642.38,640.32,0.31234382]
[1746789436312,0.26054618,642.37,640.32,0.31234382]
[1746789436612,0.26054618,642.36,640.32,0.31234382]
[1746789437011,0.26054618,642.35,640.32,0.31234382]
[1746789437311,0.26054618,642.34,640.32,0.31234382]
[1746789437813,0.26054618,642.33,640.32,0.31234382]
[1746789438216,0.26054618,642.32,640.32,0.31234382]
[1746789438713,0.26054618,642.31,640.32,0.31234382]
[1746789438914,0.26054618,642.3,640.32,0.31234382]
[1746789439313,0.53205952,642.29,640.32,0.31234382]
[1746789439519,0.27151334,642.29,640.32,0.31234382]
[1746789439712,0.2606179,642.28,640.32,0.31234382]
[1746789440219,0.2606179,642.27,640.32,0.31234382]
[1746789440814,0.2606179,642.26,640.32,0.31234382]
[1746789441113,0.2606179,642.25,640.32,0.31234382]
[1746789441319,2.03512279,642.04,640.32,0.31234382]
[1746789441718,0.2606179,642.03,640.32,0.31234382]
[1746789442020,0.2606179,642.02,640.32,0.31234382]
[1746789442524,0.2606179,642.01,640.32,0.31234382]
[1746789443125,0.2606179,642.0,640.32,0.31234382]
[1746789443323,0.2606179,641.99,640.32,0.31234382]
[1746789443627,0.2606179,641.98,640.32,0.31234382]
[1746789443927,0.2606179,641.97,640.32,0.31234382]
[1746789444327,0.2606179,641.96,640.32,0.31234382]
[1746789444526,0.2606179,641.95,640.32,0.31234382]
[1746789444824,0.2606179,641.94,640.32,0.31234382]
[1746789445525,2.03512279,641.92,640.32,0.31234382]
[1746789445730,0.2606179,641.91,640.32,0.31234382]
[1746789446028,2.03512279,641.92,640.32,0.31234382]
[1746789446429,0.26060882,641.91,640.32,0.31234382]
[1746789446729,0.26060882,641.9,640.32,0.31234382]
[1746789447028,0.26060882,641.89,640.32,0.31234382]
[1746789447230,2.03512279,641.79,640.32,0.31234382]
[1746789447628,0.26060882,641.78,640.32,0.31234382]
[1746789448029,0.26060882,641.77,640.32,0.31234382]
[1746789448329,0.26060882,641.76,640.32,0.31234382]
[1746789448630,0.26060882,641.75,640.32,0.31234382]
[1746789448827,0.26060882,641.76,640.32,0.31234382]
[1746789451230,0.26060882,641.76,640.33,0.484]
[1746789451626,0.26060882,641.75,640.33,0.484]
[1746789451830,0.26060882,641.74,640.33,0.484]
[1746789452135,0.26060882,641.73,640.33,0.484]
[1746789452533,0.26060882,641.72,640.33,0.484]
[1746789452932,0.26060882,641.71,640.33,0.484]
[1746789453227,0.26060882,641.7,640.33,0.484]
[1746789453728,0.26060882,641.69,640.33,0.484]
[1746789454031,0.26060882,641.68,640.33,0.484]
[1746789454331,0.53215711,641.68,640.33,0.484]
[1746789454627,0.26060882,641.67,640.33,0.484]
[1746789454926,0.26060882,641.66,640.33,0.484]
[1746789455327,0.26060882,641.67,640.33,0.484]
[1746789455626,0.26060882,641.66,640.33,0.484]
[1746789455928,0.26060882,641.65,640.33,0.484]
[1746789456131,0.26060882,641.65,640.35,0.31232919]
[1746789456432,0.27154829,641.68,640.35,0.31232919]
[1746789456433,0.26060882,641.64,640.35,0.31232919]
[1746789456928,0.26060882,641.63,640.35,0.31232919]
[1746789457337,0.26060882,641.62,640.35,0.31232919]
[1746789457734,0.26060882,641.61,640.35,0.31232919]
[1746789458034,0.26060882,641.6,640.35,0.31232919]
[1746789458537,0.26060882,641.59,640.35,0.31232919]
[1746789458939,0.27154829,641.68,640.35,0.31232919]
[1746789459134,0.26087786,641.67,640.35,0.31232919]
[1746789459439,0.26087786,641.66,640.35,0.31232919]
[1746789459738,0.27154829,641.68,640.35,0.31232919]
[1746789460035,0.26091378,641.67,640.35,0.31232919]
[1746789460334,0.26091378,641.66,640.35,0.31232919]
[1746789460738,0.26091378,641.65,640.35,0.31232919]
[1746789461141,0.26091378,641.64,640.35,0.31232919]
[1746789461340,0.26091378,641.63,640.35,0.31232919]
[1746789461643,0.26091378,641.62,640.35,0.31232919]
[1746789462040,0.26091378,641.61,640.35,0.31232919]
[1746789462238,0.26091378,641.6,640.35,0.31232919]
[1746789462541,0.26091378,641.59,640.35,0.31232919]
[1746789462839,0.26091378,641.58,640.35,0.31232919]
[1746789463342,0.26091378,641.57,640.35,0.31232919]
[1746789463543,0.53259775,641.57,640.35,0.31232919]
[1746789463743,0.26091378,641.56,640.35,0.31232919]
[1746789464043,0.26091378,641.55,640.35,0.31232919]
[1746789464341,0.26091378,641.54,640.35,0.31232919]
[1746789464744,0.26091378,641.53,640.35,0.31232919]
[1746789465144,0.26091378,641.52,640.35,0.31232919]
[1746789465747,0.26091378,641.51,640.35,0.31232919]
[1746789465946,0.26091378,641.5,640.35,0.31232919]
[1746789466846,0.26091378,641.49,640.35,0.31232919]
[1746789467348,0.26091378,641.48,640.35,0.31232919]
[1746789467649,0.26091378,641.47,640.35,0.31232919]
[1746789467946,0.26091378,641.56,640.35,0.31232919]
[1746789469349,0.27161612,641.55,640.35,0.31232919]
[1746789469948,0.26091378,641.54,640.35,0.31232919]
[1746789470348,0.26091378,641.53,640.35,0.31232919]
[1746789470647,0.26091378,641.52,640.35,0.31232919]
[1746789470947,0.26091378,641.51,640.35,0.31232919]
[1746789471248,0.26091378,641.5,640.35,0.31232919]
[1746789471547,0.26091378,641.49,640.35,0.31232919]
[1746789471849,0.26091378,641.48,640.35,0.31232919]
[1746789472143,0.26091378,641.47,640.35,0.31232919]
[1746789472447,0.26091378,641.54,640.35,0.31232919]
[1746789472748,0.27161612,641.55,640.35,0.31232919]
[1746789473050,0.26086063,641.54,640.35,0.31232919]
[1746789473352,0.26086063,641.53,640.35,0.31232919]
[1746789473751,0.26086063,641.52,640.35,0.31232919]
[1746789474051,0.27161612,641.55,640.35,0.31232919]
[1746789474250,0.26086061,641.54,640.35,0.31232919]
[1746789474546,0.26086061,641.53,640.35,0.31232919]
[1746789474950,0.26086061,641.52,640.35,0.31232919]
[1746789475351,0.26086061,641.54,640.35,0.31232919]
[1746789477450,0.26086061,641.53,640.35,0.31232919]
[1746789477747,0.26086061,641.52,640.35,0.31232919]
[1746789478247,0.26086061,641.51,640.35,0.31232919]
[1746789478551,0.26086061,641.5,640.35,0.31232919]
[1746789479247,0.26086061,641.49,640.35,0.31232919]
[1746789479653,0.26086061,641.48,640.35,0.31232919]
[1746789479948,0.26086061,641.47,640.35,0.31232919]
[1746789480354,0.26086061,641.46,640.35,0.31232919]
[1746789480649,0.26086061,641.45,640.35,0.31232919]
[1746789480952,0.26086061,641.44,640.35,0.31232919]
[1746789481448,0.26086061,641.43,640.35,0.31232919]
[1746789481954,0.26086061,641.42,640.35,0.31232919]
[1746789482253,0.26086061,641.41,640.35,0.31232919]
[1746789482653,0.26086061,641.4,640.35,0.31232919]
[1746789482952,0.27164262,641.44,640.35,0.31232919]
[1746789483353,0.26087505,641.43,640.35,0.31232919]
[1746789483754,0.26087505,641.42,640.35,0.31232919]
[1746789484259,0.26087505,641.41,640.35,0.31232919]
[1746789484754,0.26087505,641.4,640.35,0.31232919]
[1746789485057,0.26087505,641.39,640.35,0.31232919]
[1746789485557,0.26087505,641.38,640.35,0.31232919]
[1746789486157,0.26087505,641.37,640.35,0.31232919]
[1746789486557,0.26087505,641.36,640.35,0.31232919]
[1746789487157,0.26087505,641.35,640.35,0.31232919]
[1746789487558,0.26087505,641.34,640.35,0.31232919]
[1746789487959,0.26087505,641.33,640.35,0.31232919]
[1746789488356,0.26087505,641.32,640.35,0.31232919]
[1746789488862,0.26087505,641.31,640.35,0.31232919]
[1746789489159,0.26087505,641.3,640.35,0.31232919]
[1746789489663,0.27164262,641.44,640.35,0.31232919]
[1746789490062,2.03512279,641.51,640.35,0.31232919]
[1746789490263,0.27173489,641.43,640.35,0.31232919]
[1746789490460,0.53265804,641.43,640.35,0.31232919]
[1746789490660,0.26092315,641.43,640.35,0.31232919]
[1746789490861,2.03512279,642.12,640.35,0.31232919]
[1746789490862,0.53268775,641.42,640.35,0.31232919]
[1746789491058,0.26092315,641.41,640.35,0.31232919]
[1746789491562,0.26092315,641.4,640.35,0.31232919]
[1746789491964,0.26092315,641.39,640.35,0.31232919]
[1746789493061,0.26092315,641.38,640.35,0.31232919]
[1746789493565,0.26092315,641.37,640.35,0.31232919]
[1746789493961,2.03512279,641.12,640.35,0.31232919]
[1746789494162,0.26092315,641.11,640.35,0.31232919]
[1746789494662,0.26092315,641.1,640.35,0.31232919]
[1746789495160,2.03512279,641.12,640.35,0.31232919]
[1746789495762,0.26104637,641.11,640.35,0.31232919]
[1746789495963,2.03512279,640.97,640.35,0.31232919]
[1746789496467,0.53287677,640.96,640.35,0.31232919]
[1746789496762,0.26104637,640.95,640.35,0.31232919]
[1746789497064,0.26104637,640.94,640.35,0.31232919]
[1746789497371,0.26104637,640.93,640.35,0.31232919]
[1746789497669,0.26104637,640.92,640.35,0.31232919]
[1746789497970,0.26104637,640.91,640.35,0.31232919]
[1746789498364,0.26104637,640.9,640.35,0.31232919]
[1746789498563,0.26104637,640.89,640.35,0.31232919]
[1746789498868,0.26104637,640.88,640.35,0.31232919]
[1746789499168,0.26104637,640.87,640.35,0.31232919]
[1746789499569,0.26104637,640.86,640.35,0.31232919]
[1746789500064,0.26104637,640.85,640.35,0.31232919]
[1746789500268,0.26104637,640.84,640.35,0.31232919]
[1746789500764,0.26104637,640.83,640.35,0.31232919]
[1746789501065,0.26104637,640.82,640.35,0.31232919]
[1746789501370,0.26104637,640.81,640.35,0.31232919]
[1746789501671,0.26104637,640.8,640.35,0.31232919]
[1746789501972,0.26104637,640.95,640.35,0.31232919]
[1746789502474,0.26104637,640.94,640.35,0.31232919]
[1746789502773,0.26104637,640.93,640.35,0.31232919]
[1746789503170,0.26104637,640.92,640.35,0.31232919]
[1746789503670,0.2718304,640.96,640.35,0.31232919]
[1746789503671,0.26104637,640.95,640.35,0.31232919]
[1746789504474,0.26104637,640.94,640.35,0.31232919]
[1746789504869,0.26104637,640.93,640.35,0.31232919]
[1746789505274,0.53280035,640.92,640.35,0.31232919]
[1746789505773,0.26104637,640.91,640.35,0.31232919]
[1746789506272,0.26104637,640.9,640.35,0.31232919]
[1746789506474,0.27175398,640.92,640.35,0.31232919]
[1746789506770,0.26090278,640.91,640.35,0.31232919]
[1746789507275,0.26090278,640.9,640.35,0.31232919]
[1746789507471,0.26090278,640.91,640.35,0.31232919]
[1746789508274,0.27176778,640.9,640.35,0.31232919]
[1746789508771,0.26090278,640.89,640.35,0.31232919]
[1746789509275,0.26090278,640.88,640.35,0.31232919]
[1746789509576,0.26090278,640.87,640.35,0.31232919]
[1746789509875,0.26090278,640.86,640.35,0.31232919]
[1746789510172,0.26090278,640.89,640.35,0.31232919]
[1746789510577,0.26090278,640.88,640.35,0.31232919]
[1746789510777,0.26090278,640.87,640.35,0.31232919]
[1746789511376,0.26090278,640.86,640.35,0.31232919]
[1746789511776,0.26090278,640.85,640.35,0.31232919]
[1746789512076,0.27176778,640.9,640.35,0.31232919]
[1746789512077,0.26090278,640.84,640.35,0.31232919]
[1746789512377,0.26090278,640.83,640.35,0.31232919]
[1746789512775,0.26090278,640.82,640.35,0.31232919]
[1746789513179,0.26090278,640.81,640.35,0.31232919]
[1746789513376,0.26090278,640.89,640.35,0.31232919]
[1746789513778,0.26090278,640.88,640.35,0.31232919]
[1746789514279,0.53269178,640.87,640.35,0.31232919]
[1746789515182,0.26090278,640.86,640.35,0.31232919]
[1746789515575,0.26090278,640.85,640.35,0.31232919]
[1746789515979,0.26090278,640.84,640.35,0.31232919]
[1746789516277,0.26090278,640.83,640.35,0.31232919]
[1746789516684,0.26090278,640.82,640.35,0.31232919]
[1746789516880,0.26090278,640.81,640.35,0.31232919]
[1746789517280,0.26090278,640.8,640.35,0.31232919]
[1746789517475,0.27176141,640.8,640.35,0.31232919]
[1746789517780,0.26090278,640.79,640.35,0.31232919]
[1746789517982,0.26090278,640.79,640.36,0.777]
[1746789518183,0.26090278,640.79,640.37,0.31231944]
[1746789520283,0.27171473,640.78,640.37,0.31231944]
[1746789520785,0.26090278,640.77,640.37,0.31231944]
[1746789521285,0.27171473,640.78,640.37,0.31231944]
[1746789521583,0.26088278,640.77,640.37,0.31231944]
[1746789522184,0.27171473,640.78,640.37,0.31231944]
[1746789522483,0.26088537,640.77,640.37,0.31231944]
[1746789523284,0.27170624,640.76,640.37,0.31231944]
[1746789523684,0.26088537,640.75,640.37,0.31231944]
[1746789526380,0.27169458,640.74,640.37,0.31231944]
[1746789527181,0.26088537,640.73,640.37,0.31231944]
[1746789528288,0.27169458,640.74,640.37,0.31231944]
[1746789528580,0.26091146,640.73,640.37,0.31231944]
[1746789531482,0.27169458,640.74,640.37,0.31231944]
[1746789531687,0.26093098,640.73,640.37,0.31231944]
[1746789532386,0.26093098,641.27,640.37,0.31231944]
[1746789532587,0.27175292,640.72,640.37,0.31231944]
[1746789532786,2.03512279,641.23,640.37,0.31231944]
[1746789533083,0.27175292,640.71,640.37,0.31231944]
[1746789533388,0.26093098,640.7,640.37,0.31231944]
[1746789533686,0.53268921,640.7,640.37,0.31231944]
[1746789533888,0.27175823,640.7,640.37,0.31231944]
[1746789534081,0.26093098,640.69,640.37,0.31231944]
[1746789535387,0.27175823,640.68,640.37,0.31231944]
[1746789535788,0.26093098,640.67,640.37,0.31231944]
[1746789537987,0.27175823,640.68,640.37,0.31231944]
[1746789538305,0.26093012,640.67,640.37,0.31231944]
[1746789543495,0.26081497,640.67,640.37,0.31231944]
[1746789546793,0.27175823,640.68,640.37,0.31231944]
[1746789547197,0.26088647,640.67,640.37,0.31231944]
[1746789550198,0.27175823,640.68,640.37,0.31231944]
[1746789550698,0.26085635,640.67,640.37,0.31231944]
[1746789559405,0.27166276,640.66,640.37,0.31231944]
[1746789559703,0.26085635,640.65,640.37,0.31231944]
[1746789561307,0.27166276,640.66,640.37,0.31231944]
[1746789561606,0.26088463,640.65,640.37,0.31231944]
[1746789562408,0.27168609,640.64,640.37,0.31231944]
[1746789562806,0.26088463,640.63,640.37,0.31231944]
[1746789564107,0.27168609,640.64,640.37,0.31231944]
[1746789564406,0.26089721,640.63,640.37,0.31231944]
[1746789565406,2.03512279,641.39,640.37,0.31231944]
[1746789565607,0.27173701,640.62,640.37,0.31231944]
[1746789565906,2.03512279,641.15,640.37,0.31231944]
[1746789566106,0.53265691,640.61,640.37,0.31231944]
[1746789566307,0.26089444,640.61,640.37,0.31231944]
[1746789566508,0.26089444,640.6,640.37,0.31231944]
[1746789566705,0.27174762,640.6,640.37,0.31231944]
[1746789567107,0.26089444,640.59,640.37,0.31231944]
[1746789568307,0.27171897,640.58,640.37,0.31231944]
[1746789568528,0.26089444,640.57,640.37,0.31231944]
[1746789569809,0.27171897,640.58,640.37,0.31231944]
[1746789570013,0.26081931,640.57,640.37,0.31231944]
[1746789571311,0.27166064,640.56,640.37,0.31231944]
[1746789571814,0.26081931,640.55,640.37,0.31231944]
[1746789573316,0.27166064,640.56,640.37,0.31231944]
[1746789574115,2.03512279,641.45,640.37,0.31231944]
[1746789574316,0.27163732,640.62,640.37,0.31231944]
[1746789574610,2.03512279,641.45,640.37,0.31231944]
[1746789574812,0.27163732,640.62,640.37,0.31231944]
[1746789575317,0.27166064,640.61,640.37,0.31231944]
[1746789577120,0.26074878,640.6,640.37,0.31231944]
[1746789578819,0.27166064,640.61,640.37,0.31231944]
[1746789579514,0.26077335,640.6,640.37,0.31231944]
[1746789580321,0.26077335,641.58,640.37,0.31231944]
[1746789580517,2.03512279,641.59,640.37,0.31231944]
[1746789580518,0.27165216,640.59,640.37,0.31231944]
[1746789580717,2.03512279,641.59,640.37,0.31231944]
[1746789580915,0.26077722,641.58,640.37,0.31231944]
[1746789581116,0.2716564,640.58,640.37,0.31231944]
[1746789581319,0.26077722,641.57,640.37,0.31231944]
[1746789581518,0.27162884,640.57,640.37,0.31231944]
[1746789581915,2.03512279,641.91,640.37,0.31231944]
[1746789582215,0.27163838,640.56,640.37,0.31231944]
[1746789582415,2.03512279,641.91,640.37,0.31231944]
[1746789582618,0.27164156,640.55,640.37,0.31231944]
[1746789582821,0.26081228,641.9,640.37,0.31231944]
[1746789583020,0.26081228,640.54,640.37,0.31231944]
[1746789583216,0.27165004,640.54,640.37,0.31231944]
[1746789583421,0.26081228,640.53,640.37,0.31231944]
[1746789583620,0.26081228,641.92,640.37,0.31231944]
[1746789583817,0.27164792,640.53,640.37,0.31231944]
[1746789584015,0.26081228,641.91,640.37,0.31231944]
[1746789584219,0.26081228,640.52,640.37,0.31231944]
[1746789584418,0.27164792,640.52,640.37,0.31231944]
[1746789584623,0.26081228,640.51,640.37,0.31231944]
[1746789584821,0.27164792,640.51,640.37,0.31231944]
[1746789585023,0.26081228,640.5,640.37,0.31231944]
[1746789586421,0.27166064,640.49,640.37,0.31231944]
[1746789586622,0.26081228,640.48,640.37,0.31231944]
[1746789587825,0.27166064,640.49,640.37,0.31231944]
[1746789588124,0.26088024,640.48,640.37,0.31231944]
[1746789588425,0.27166064,640.49,640.37,0.31231944]
[1746789588723,0.26093972,640.48,640.37,0.31231944]
[1746789592331,0.27167867,640.47,640.37,0.31231944]
[1746789592529,0.26093972,640.46,640.37,0.31231944]
[1746789593132,0.27167867,640.47,640.37,0.31231944]
[1746789593329,0.26096625,640.46,640.37,0.31231944]
[1746789595333,0.26096625,641.33,640.37,0.31231944]
[1746789595536,0.27177627,640.45,640.37,0.31231944]
[1746789595836,0.26096625,640.44,640.37,0.31231944]
[1746789596135,0.27178264,640.44,640.37,0.31231944]
[1746789596835,0.26098391,640.43,640.37,0.31231944]
[1746789598435,0.27179007,640.42,640.37,0.31231944]
[1746789598837,0.26098391,640.41,640.37,0.31231944]
[1746789600637,0.27179007,640.42,640.37,0.31231944]
[1746789600937,0.26101593,640.41,640.37,0.31231944]
[1746789601333,0.27178688,640.4,640.37,0.31231944]
[1746789601532,0.26101593,640.39,640.37,0.31231944]
[1746789607341,0.53274657,640.39,640.37,0.31231944]
[1746789607541,0.26101593,640.38,640.37,0.31231944]
[1746789607840,0.27173064,640.39,640.37,0.31231944]
[1746789608139,0.26094457,640.38,640.37,0.31231944]
[1746789610343,0.53269749,640.38,640.37,0.31231944]
[1746789610542,0.27175292,640.38,640.37,0.31231944]
[1746789610744,0.53269749,640.38,640.37,0.31231944]
[1746789614247,0.53269749,640.38,640.32,0.31234382]
[1746789614440,0.53269749,640.38,640.23,0.17702076]
[1746789614639,0.53269749,640.38,640.24,0.31238285]
[1746789614844,0.26094457,640.37,640.24,0.31238285]
[1746789615145,0.26094457,640.36,640.24,0.31238285]
[1746789615640,0.27175292,640.38,640.24,0.31238285]
[1746789615641,0.26094457,640.35,640.24,0.31238285]
[1746789616347,0.53277285,640.34,640.24,0.31238285]
[1746789616847,0.26094457,640.33,640.24,0.31238285]
[1746789622547,0.27189199,640.32,640.24,0.31238285]
[1746789623049,0.26094457,640.31,640.24,0.31238285]
[1746789624152,0.26094457,640.3,640.24,0.31238285]
[1746789624651,0.27189199,640.32,640.24,0.31238285]
[1746789624950,0.26113108,640.31,640.24,0.04045793]
[1746789625346,0.26113108,640.85,640.24,0.04045793]
[1746789626351,0.26113108,640.85,640.23,0.17702076]
[1746789626650,0.26113108,641.58,640.23,0.17702076]
[1746789626853,0.26113108,640.84,640.23,0.17702076]
[1746789627146,0.26113108,640.83,640.23,0.17702076]
[1746789627550,0.26113108,640.82,640.23,0.17702076]
[1746789627747,0.26113108,640.81,640.23,0.17702076]
[1746789628152,0.26113108,640.8,640.23,0.17702076]
[1746789628654,0.26113108,640.79,640.23,0.17702076]